bitfinex/quotes_SOLUSD_20250817
["timestamp","ask_amount","ask_price","bid_price","bid_amount"]
[1755442038671,16.34040895,194.31,194.3,10.03]
[1755442039589,16.34040895,194.31,194.3,0.03]
[1755442039798,16.34040895,194.31,194.3,10.03]
[1755442040598,16.34040895,194.31,194.3,0.03]
[1755442040804,16.34040895,194.31,194.3,10.03]
[1755442041890,16.34040895,194.31,194.3,0.03]
[1755442042207,16.34040895,194.31,194.3,10.03]
[1755442042704,17.06040895,194.31,194.3,10.03]
[1755442043305,17.06040895,194.31,194.3,0.03]
[1755442045410,13.22171242,194.31,194.3,0.03]
[1755442045726,17.06885405,194.31,194.3,0.03]
[1755442047897,17.06885405,194.31,194.3,10.03]
[1755442048233,13.17119862,194.31,194.3,0.03]
[1755442048399,13.61121258,194.31,194.3,0.03]
[1755442048602,17.06885405,194.31,194.3,0.03]
[1755442049718,13.17119862,194.31,194.3,10.03]
[1755442049894,3.84714163,194.31,194.3,10.72]
[1755442050099,5.14569094,194.34,194.31,10.0]
[1755442050309,7.30922925,194.33,194.32,0.69]
[1755442050717,7.30922925,194.33,194.32,10.69]
[1755442051031,3.46215469,194.36,194.35,10.0]
[1755442051204,3.84655393,194.36,194.35,14.58765543]
[1755442051827,3.84655393,194.36,194.35,10.69]
[1755442052123,0.06,194.39,194.35,10.69]
[1755442052124,3.46217123,194.38,194.37,10.0]
[1755442052327,3.84632285,194.38,194.37,10.0]
[1755442052513,3.84632285,194.38,194.37,10.69]
[1755442052898,3.84632285,194.38,194.37,51.22765543]
[1755442053113,0.06,194.39,194.38,10.0]
[1755442053310,0.06,194.39,194.38,14.58765543]
[1755442053798,0.06,194.39,194.38,19.73221762]
[1755442054239,0.06,194.39,194.38,15.83456219]
[1755442054402,0.06,194.39,194.38,14.58765543]
[1755442054803,0.06,194.39,194.38,10.0]
[1755442055608,0.06,194.39,194.38,10.69]
[1755442056303,0.06,194.39,194.38,10.0]
[1755442057740,0.06,194.39,194.38,19.73221762]
[1755442062018,0.06,194.39,194.38,47.31]
[1755442062637,0.06,194.39,194.38,52.45456219]
[1755442063217,0.06,194.39,194.38,47.31]
[1755442064122,0.06,194.39,194.38,47.29]
[1755442064723,0.06,194.39,194.38,52.43456219]
[1755442064920,0.06,194.39,194.38,137.03221762]
[1755442065526,0.06,194.39,194.38,133.13456219]
[1755442065740,0.06,194.39,194.38,131.88765543]
[1755442067036,0.06,194.39,194.38,127.99]
[1755442067246,0.06,194.39,194.38,131.88765543]
[1755442068349,0.06,194.39,194.38,137.03221762]
[1755442072626,0.06,194.39,194.38,133.13456219]
[1755442072827,0.06,194.39,194.38,137.03221762]
[1755442073624,0.06,194.39,194.38,163.03221762]
[1755442074442,0.06,194.39,194.38,152.13843319]
[1755442074744,0.06,194.41,194.38,152.13843319]
[1755442074745,0.06,194.41,194.4,36.0]
[1755442074944,0.06,194.41,194.4,81.64168835]
[1755442075127,0.06,194.41,194.4,156.47996264]
[1755442075449,0.06,194.41,194.4,158.02555735]
[1755442075771,1e-08,194.41,194.4,162.23327123]
[1755442076431,1e-08,194.41,194.4,158.02555735]
[1755442077440,0.06,194.43,194.4,158.02555735]
[1755442077441,1e-08,194.43,194.42,26.0]
[1755442077643,0.68,194.53,194.52,10.0]
[1755442077819,0.68,194.53,194.52,46.58]
[1755442080221,14.93640191,194.58,194.52,46.58]
[1755442080222,5.13954704,194.57,194.52,46.58]
[1755442080451,0.68,194.55,194.52,46.58]
[1755442080620,0.68,194.54,194.53,10.0]
[1755442080819,0.68,194.54,194.53,46.58]
[1755442082338,0.68,194.57,194.55,10.0]
[1755442082529,0.68,194.57,194.55,46.58]
[1755442082729,0.68,194.56,194.55,46.58]
[1755442086331,9.71745806,194.56,194.55,36.58]
[1755442086531,9.71745806,194.56,194.55,46.58]
[1755442086751,13.52646022,194.56,194.53,10.0]
[1755442086953,3.89765543,194.54,194.53,10.0]
[1755442087142,8.38676393,194.54,194.53,10.0]
[1755442087459,8.38676393,194.54,194.52,46.56]
[1755442087657,3.89765543,194.54,194.52,46.56]
[1755442087961,3.89765543,194.53,194.52,46.56]
[1755442088147,4.57765543,194.53,194.52,46.56]
[1755442089077,8.38808812,194.53,194.48,10.0]
[1755442089236,29.89765543,194.49,194.45,0.03]
[1755442089550,3.89765543,194.46,194.45,10.03]
[1755442089748,4.57765543,194.46,194.45,10.03]
[1755442089957,13.53053386,194.46,194.45,10.03]
[1755442090157,9.72010117,194.46,194.45,10.03]
[1755442090369,13.53328058,194.46,194.45,10.03]
[1755442091156,13.53328058,194.46,194.45,0.03]
[1755442091745,3.81317941,194.46,194.45,10.03]
[1755442092062,3.81317941,194.47,194.45,47.27]
[1755442092252,5.14168369,194.49,194.46,10.0]
[1755442092570,0.68,194.52,194.47,51.13765543]
[1755442092750,3.81820502,194.51,194.5,10.0]
[1755442094146,4.49820502,194.51,194.5,10.0]
[1755442094847,4.49820502,194.51,194.49,46.56]
[1755442095050,3.81820502,194.5,194.49,46.56]
[1755442096137,9.67959319,194.5,194.49,46.56]
[1755442096449,9.67959319,194.5,194.48,46.56]
[1755442096759,4.53820502,194.49,194.48,10.0]
[1755442096943,4.53820502,194.49,194.47,10.0]
[1755442096944,8.43586045,194.49,194.47,10.0]
[1755442097147,5.14138817,194.5,194.45,10.03]
[1755442097148,8.43586045,194.48,194.45,10.03]
[1755442097332,3.89765543,194.46,194.45,10.03]
[1755442097536,3.81820502,194.46,194.45,10.03]
[1755442099063,5.14222198,194.47,194.45,10.03]
[1755442099271,5.14222198,194.47,194.46,10.0]
[1755442099472,3.82796101,194.47,194.46,10.0]
[1755442100135,3.82796101,194.47,194.45,10.03]
[1755442100348,3.82796101,194.46,194.45,10.71]
[1755442100561,5.1414066,194.5,194.45,14.60765543]
[1755442100794,3.82893039,194.49,194.46,50.45765543]
[1755442100950,3.82893039,194.48,194.46,50.45765543]
[1755442101149,3.82893039,194.47,194.46,46.56]
[1755442101473,3.44575514,194.51,194.5,10.0]
[1755442101769,3.82928973,194.51,194.5,10.0]
[1755442102464,3.82928973,194.51,194.49,46.56]
[1755442102765,11.89344726,194.5,194.47,10.0]
[1755442103064,3.89765543,194.48,194.47,10.0]
[1755442103242,7.72694516,194.48,194.47,10.0]
[1755442103656,3.82928973,194.48,194.47,10.68]
[1755442103845,3.82928973,194.48,194.47,47.24]
[1755442104260,3.82928973,194.5,194.47,47.24]
[1755442104474,3.82928973,194.49,194.48,10.0]
[1755442104651,4.54928973,194.49,194.45,0.03]
[1755442104853,3.89765543,194.46,194.45,0.03]
[1755442105047,7.72694516,194.46,194.45,0.03]
[1755442105243,8.44694516,194.46,194.45,0.03]
[1755442106056,7.99665198,194.46,194.45,0.03]
[1755442106253,9.69173547,194.46,194.45,0.03]
[1755442106949,5.14220327,194.47,194.45,10.03]
[1755442107149,3.89765543,194.46,194.45,10.03]
[1755442107350,3.89765543,194.47,194.45,10.03]
[1755442108563,5.14221973,194.47,194.45,10.03]
[1755442108744,3.89765543,194.46,194.45,10.03]
[1755442109144,4.61765543,194.46,194.45,0.03]
[1755442109369,8.45058907,194.46,194.45,0.03]
[1755442109767,11.89795132,194.46,194.45,0.03]
[1755442110151,17.04039706,194.46,194.45,0.03]
[1755442111682,17.04315331,194.46,194.45,0.03]
[1755442112185,32.14936888,194.46,194.45,0.03]
[1755442112873,28.25171345,194.46,194.45,0.03]
[1755442113061,32.14936888,194.46,194.45,0.03]
[1755442113464,68.86936888,194.46,194.45,0.03]
[1755442113946,68.86936888,194.46,194.43,0.03]
[1755442113947,15.10621557,194.45,194.43,0.03]
[1755442114147,26.28692314,194.44,194.43,0.03]
[1755442114502,32.14989783,194.44,194.43,0.03]
[1755442116851,41.10621557,194.42,194.41,0.03]
[1755442117192,41.10621557,194.42,194.37,0.03]
[1755442117193,41.10621557,194.38,194.37,0.03]
[1755442117357,85.1539895,194.38,194.37,0.03]
[1755442117556,89.70790295,194.38,194.37,0.03]
[1755442118060,89.70530819,194.38,194.37,0.03]
[1755442118255,89.70530819,194.38,194.34,0.03]
[1755442118575,5.14509158,194.36,194.34,0.03]
[1755442118890,9.04274701,194.36,194.34,0.03]
[1755442120357,9.76274701,194.36,194.34,0.03]
[1755442121985,13.58563701,194.36,194.34,0.03]
[1755442122175,13.58604273,194.36,194.34,0.03]
[1755442122574,17.02508317,194.36,194.34,0.03]
[1755442123375,17.02363371,194.36,194.34,0.03]
[1755442123774,12.86604273,194.36,194.34,0.03]
[1755442124973,15.55025757,194.36,194.34,0.03]
[1755442125178,11.65260214,194.36,194.34,0.03]
[1755442125383,15.55025757,194.36,194.34,0.03]
[1755442126473,11.65260214,194.36,194.34,0.03]
[1755442126674,15.54348115,194.36,194.34,0.03]
[1755442127280,3.8165193,194.36,194.34,0.03]
[1755442127481,51.78621557,194.4,194.35,0.69]
[1755442127795,3.81690033,194.39,194.35,0.69]
[1755442127976,3.81690033,194.39,194.36,13.89765543]
[1755442128488,3.81690033,194.39,194.37,0.66]
[1755442128790,3.81690033,194.39,194.36,13.89765543]
[1755442129085,3.81690033,194.39,194.38,0.66]
[1755442129602,3.81690033,194.39,194.38,10.66]
[1755442129776,5.14384217,194.41,194.38,10.66]
[1755442129977,5.14384217,194.41,194.39,0.66]
[1755442129978,3.8185418,194.4,194.39,0.66]
[1755442131791,31.14379048,194.41,194.39,0.66]
[1755442132099,31.14379048,194.41,194.38,10.0]
[1755442132308,3.82250037,194.4,194.38,10.66]
[1755442132492,3.82250037,194.4,194.39,0.66]
[1755442132909,5.14343108,194.43,194.4,10.0]
[1755442133198,3.822393,194.42,194.41,10.66]
[1755442133401,3.822393,194.43,194.41,10.0]
[1755442133612,3.822393,194.42,194.41,10.0]
[1755442133981,3.822393,194.43,194.4,10.0]
[1755442134191,9.04066871,194.44,194.42,10.0]
[1755442134404,3.82413603,194.43,194.42,10.0]
[1755442134816,8.96763161,194.43,194.4,10.66]
[1755442135111,4.53413603,194.42,194.4,10.0]
[1755442135275,9.04115101,194.43,194.41,10.0]
[1755442135598,0.71,194.45,194.41,10.0]
[1755442135599,3.44186832,194.45,194.41,13.89765543]
[1755442135792,3.82411283,194.44,194.43,10.0]
[1755442135990,3.82411283,194.44,194.43,10.66]
[1755442136188,3.82411283,194.44,194.43,10.0]
[1755442136595,11.16344961,194.44,194.42,10.0]
[1755442136803,5.14350375,194.42,194.4,10.0]
[1755442137103,3.82417857,194.41,194.4,10.0]
[1755442138793,8.96794689,194.41,194.4,10.0]
[1755442139106,8.96794689,194.41,194.39,10.0]
[1755442139285,3.82417857,194.4,194.39,10.0]
[1755442140003,7.721834,194.4,194.39,10.0]
[1755442140178,7.721834,194.4,194.38,10.0]
[1755442140475,3.82417857,194.39,194.38,10.0]
[1755442141094,8.96847611,194.39,194.38,10.0]
[1755442141299,3.82417857,194.39,194.38,10.66]
[1755442141910,41.74354333,194.42,194.38,14.55765543]
[1755442142207,3.82843271,194.41,194.39,0.66]
[1755442142503,0.06,194.43,194.41,10.0]
[1755442142710,0.06,194.43,194.42,10.66]
[1755442143010,3.8888406,194.43,194.42,10.66]
[1755442143480,3.8888406,194.43,194.42,14.55765543]
[1755442143790,0.06,194.43,194.42,14.55765543]
[1755442144186,3.88895848,194.43,194.42,14.55765543]
[1755442144380,0.06,194.43,194.42,14.55765543]
[1755442146189,0.06,194.43,194.42,13.89765543]
[1755442146506,0.06,194.43,194.42,10.0]
[1755442147191,0.06,194.43,194.42,10.66]
[1755442147391,0.06,194.43,194.42,10.0]
[1755442147605,0.06,194.43,194.4,10.0]
[1755442147606,4.66765543,194.43,194.4,10.0]
[1755442147781,4.66765543,194.43,194.37,4.55765543]
[1755442147782,8.4400785,194.42,194.41,10.0]
[1755442147983,8.4400785,194.42,194.39,10.0]
[1755442148184,5.14403292,194.4,194.39,10.0]
[1755442149388,8.97882553,194.4,194.39,10.0]
[1755442150413,17.0383212,194.4,194.37,10.0]
[1755442150718,3.89765543,194.38,194.37,10.0]
[1755442150886,7.73244804,194.38,194.37,10.0]
[1755442151085,8.44244804,194.38,194.37,10.0]
[1755442152296,5.14482687,194.37,194.35,0.03]
[1755442152496,7.73244804,194.36,194.35,0.03]
[1755442152699,8.44244804,194.36,194.35,0.03]
[1755442152908,8.05949567,194.36,194.35,0.03]
[1755442153098,11.89682914,194.36,194.35,0.03]
[1755442153506,17.04242088,194.36,194.35,0.03]
[1755442154290,13.14476545,194.36,194.35,0.03]
[1755442154492,17.04242088,194.36,194.35,0.03]
[1755442159114,16.33242088,194.36,194.35,10.03]
[1755442161507,16.33242088,194.36,194.35,0.03]
[1755442161935,17.03242088,194.36,194.35,0.03]
[1755442162126,17.03376171,194.36,194.35,0.03]
[1755442163507,32.13997728,194.36,194.35,0.03]
[1755442165123,32.139715,194.36,194.35,0.03]
[1755442166052,32.139715,194.36,194.35,0.72]
[1755442166053,12.435844,194.36,194.35,0.72]
[1755442167561,12.435844,194.36,194.35,0.03]
[1755442168064,12.43526491,194.36,194.35,0.03]
[1755442168427,16.33292034,194.36,194.35,0.03]
[1755442168633,17.03292034,194.36,194.35,0.03]
[1755442169153,13.13526491,194.36,194.35,0.03]
[1755442169352,17.03292034,194.36,194.35,0.03]
[1755442171042,13.19458725,194.36,194.35,0.03]
[1755442171247,17.03386682,194.36,194.35,0.03]
[1755442171830,17.03384019,194.36,194.35,0.03]
[1755442172258,16.33384019,194.36,194.35,0.03]
[1755442174153,16.33344099,194.36,194.35,0.03]
[1755442175640,12.43578556,194.36,194.35,0.03]
[1755442175854,16.33344099,194.36,194.35,0.03]
[1755442177467,17.03344099,194.36,194.35,0.03]
[1755442178150,17.03589807,194.36,194.35,0.03]
[1755442180156,17.0358018,194.36,194.35,0.03]
[1755442180338,17.03592143,194.36,194.35,0.03]
[1755442182451,32.142137,194.36,194.34,0.03]
[1755442182652,63.57704542,194.35,194.34,1e-08]
[1755442182842,65.63927242,194.35,194.34,1e-08]
[1755442184678,70.78462873,194.35,194.34,1e-08]
[1755442184845,70.08462873,194.35,194.34,1e-08]
[1755442185044,70.74462873,194.35,194.34,1e-08]
[1755442186263,41.10621557,194.32,194.31,0.03]
[1755442186460,41.10621557,194.32,194.31,1e-08]
[1755442186461,88.87704542,194.32,194.31,1e-08]
[1755442186769,89.53704542,194.32,194.31,1e-08]
[1755442187638,91.59969842,194.32,194.31,1e-08]
[1755442187838,96.74584909,194.32,194.31,1e-08]
[1755442189469,96.74766027,194.32,194.31,1e-08]
[1755442189863,60.16766027,194.32,194.31,1e-08]
[1755442190063,60.16766027,194.32,194.31,0.69000001]
[1755442190064,8.98683895,194.32,194.31,0.69000001]
[1755442190373,8.98683895,194.32,194.31,14.58765544]
[1755442190374,3.84068828,194.32,194.31,14.58765544]
[1755442190555,36.58,194.34,194.33,10.0]
[1755442190751,7.29761004,194.34,194.33,10.69]
[1755442190951,7.29761004,194.34,194.33,10.0]
[1755442191755,5.14588586,194.33,194.32,10.0]
[1755442191953,5.14588586,194.33,194.32,10.69]
[1755442191954,12.4434959,194.33,194.32,10.69]
[1755442192250,8.98721944,194.33,194.32,10.69]
[1755442192462,12.4434959,194.33,194.32,10.69]
[1755442193774,12.4434959,194.33,194.32,10.0]
[1755442194461,12.4434959,194.33,194.31,10.00000001]
[1755442194667,7.29761004,194.32,194.31,10.00000001]
[1755442194866,12.44376071,194.32,194.31,1e-08]
[1755442195066,17.00141614,194.32,194.31,1e-08]
[1755442195278,32.10763171,194.32,194.31,1e-08]
[1755442195456,7.30773718,194.32,194.31,14.58765544]
[1755442196258,7.30773718,194.32,194.31,10.69000001]
[1755442196986,7.30773718,194.32,194.31,14.58765544]
[1755442198468,7.30773718,194.32,194.31,10.69000001]
[1755442198469,8.60242713,194.32,194.31,10.69000001]
[1755442198777,12.4548143,194.32,194.31,10.69000001]
[1755442200188,12.4548143,194.32,194.31,14.58765544]
[1755442200487,12.4548143,194.32,194.31,10.69000001]
[1755442200686,12.45496711,194.32,194.31,10.69000001]
[1755442202767,7.30881644,194.32,194.31,14.58765544]
[1755442203467,7.30881644,194.32,194.31,10.69000001]
[1755442203784,7.30905923,194.32,194.31,10.69000001]
[1755442204565,12.4552099,194.32,194.31,10.69000001]
[1755442205194,12.4552099,194.32,194.31,10.00000001]
[1755442205362,13.1152099,194.32,194.31,1e-08]
[1755442205693,13.1152099,194.32,194.31,10.00000001]
[1755442205694,12.4552099,194.32,194.31,10.00000001]
[1755442206062,12.4552099,194.32,194.31,1e-08]
[1755442206261,17.01286533,194.32,194.31,1e-08]
[1755442206457,68.6990809,194.32,194.31,1e-08]
[1755442206687,96.45203147,194.32,194.31,1e-08]
[1755442206887,100.30597763,194.32,194.31,1e-08]
[1755442207398,74.30597763,194.32,194.31,1e-08]
[1755442208064,74.36597763,194.32,194.31,1e-08]
[1755442208372,41.10621557,194.3,194.29,0.03]
[1755442208564,69.89022262,194.3,194.29,0.03]
[1755442209788,69.8888304,194.3,194.29,0.03]
[1755442210380,75.03551079,194.3,194.29,0.03]
[1755442211310,97.91344805,194.3,194.28,0.03]
[1755442211482,16.82711163,194.29,194.28,0.03]
[1755442211685,17.48711163,194.29,194.28,0.03]
[1755442211888,13.15439955,194.29,194.28,0.03]
[1755442212210,13.15455336,194.29,194.28,0.03]
[1755442212567,18.30149864,194.29,194.28,0.03]
[1755442212784,22.63342313,194.29,194.28,0.03]
[1755442212975,18.30071105,194.29,194.28,0.03]
[1755442213298,22.63345629,194.29,194.28,1e-08]
[1755442213477,37.73967186,194.29,194.28,1e-08]
[1755442213792,37.73967186,194.29,194.27,1e-08]
[1755442213966,49.73379893,194.28,194.27,1e-08]
[1755442214166,49.73379893,194.28,194.26,1e-08]
[1755442214167,15.10621557,194.27,194.26,1e-08]
[1755442214472,46.25422071,194.25,194.24,0.03]
[1755442214702,94.03991895,194.25,194.24,0.03]
[1755442215307,96.80320995,194.25,194.24,0.03]
[1755442215672,92.90231998,194.25,194.24,0.03]
[1755442215899,96.79997541,194.25,194.24,0.03]
[1755442216208,96.79985153,194.25,194.24,0.03]
[1755442216409,77.09598053,194.25,194.24,0.03]
[1755442216568,77.09598053,194.25,194.24,0.73]
[1755442216569,49.03268953,194.25,194.24,0.73]
[1755442217285,49.03268953,194.25,194.24,0.03]
[1755442217484,49.03268953,194.25,194.24,0.73]
[1755442217696,12.45268953,194.25,194.24,10.73]
[1755442218987,7.30468439,194.25,194.24,10.73]
[1755442219183,3.84840793,194.25,194.24,10.73]
[1755442219491,8.99641307,194.25,194.24,10.73]
[1755442221896,8.99641307,194.25,194.24,10.03]
[1755442223381,3.84840793,194.25,194.24,19.77592561]
[1755442223685,3.45627646,194.26,194.24,19.77592561]
[1755442223686,3.45627646,194.28,194.27,10.0]
[1755442223891,3.45627646,194.31,194.3,10.0]
[1755442224090,3.8428175,194.31,194.3,14.59765543]
[1755442224671,5.2062508,194.32,194.3,14.59765543]
[1755442224878,3.84307386,194.31,194.3,10.0]
[1755442225084,7.29935032,194.31,194.3,10.0]
[1755442225294,12.44576584,194.31,194.29,10.0]
[1755442225484,8.60269198,194.31,194.3,10.0]
[1755442225681,12.4461344,194.31,194.3,10.0]
[1755442225870,12.4461344,194.31,194.3,10.7]
[1755442226075,3.84344242,194.31,194.3,14.59765543]
[1755442226390,7.29971888,194.31,194.3,14.59765543]
[1755442226617,7.29971888,194.31,194.3,10.0]
[1755442226778,12.4461344,194.31,194.3,10.0]
[1755442230801,12.4461344,194.31,194.29,10.0]
[1755442230802,12.44681488,194.31,194.29,10.0]
[1755442230980,11.89805479,194.3,194.28,10.0]
[1755442231175,7.30039936,194.29,194.28,10.0]
[1755442231588,7.30039936,194.29,194.26,10.0]
[1755442231589,5.14721021,194.28,194.26,10.0]
[1755442231777,9.04486564,194.28,194.27,10.0]
[1755442231976,12.45172621,194.28,194.27,10.0]
[1755442232385,8.99194294,194.28,194.27,10.0]
[1755442232590,12.45172621,194.28,194.27,10.0]
[1755442233202,8.99194294,194.28,194.27,10.0]
[1755442233400,12.45172621,194.28,194.26,10.0]
[1755442233579,8.44238816,194.27,194.26,10.0]
[1755442233783,8.44238816,194.27,194.24,10.03]
[1755442233784,44.6174387,194.27,194.24,10.03]
[1755442234018,3.89765543,194.25,194.24,0.03]
[1755442234339,11.20241758,194.25,194.24,0.03]
[1755442234610,7.30476215,194.25,194.24,0.03]
[1755442234814,3.84497888,194.25,194.24,10.73]
[1755442235702,3.84497888,194.26,194.25,10.0]
[1755442235927,3.84451171,194.26,194.25,14.59765543]
[1755442238209,7.30438394,194.26,194.25,14.59765543]
[1755442238389,8.99225185,194.26,194.25,10.7]
[1755442238590,8.99225185,194.26,194.25,10.0]
[1755442238790,12.45212408,194.26,194.25,10.0]
[1755442239008,12.45212408,194.26,194.24,10.03]
[1755442239009,17.04977951,194.26,194.24,10.03]
[1755442239332,7.30438394,194.25,194.24,10.03]
[1755442240004,11.90203937,194.25,194.24,10.03]
[1755442240519,17.05004451,194.25,194.24,10.03]
[1755442240713,17.05004451,194.25,194.24,0.03]
[1755442242725,32.15784881,194.25,194.24,0.03]
[1755442243809,32.15779275,194.25,194.24,0.03]
[1755442244719,12.45392175,194.25,194.24,0.03]
[1755442247829,17.07157718,194.25,194.24,0.03]
[1755442248408,32.17779275,194.25,194.24,0.03]
[1755442248728,42.20779275,194.25,194.24,0.03]
[1755442249798,41.48779275,194.25,194.24,0.03]
[1755442250003,12.45392175,194.25,194.24,0.03]
[1755442250205,7.30591661,194.25,194.24,14.58765543]
[1755442250615,12.45753622,194.25,194.24,14.58765543]
[1755442251214,8.99404952,194.25,194.24,14.58765543]
[1755442251416,8.99404952,194.25,194.24,10.03]
[1755442251606,12.45753622,194.25,194.24,10.03]
[1755442252022,5.14800514,194.25,194.24,10.03]
[1755442252214,12.46047886,194.25,194.24,10.69]
[1755442252626,8.99699216,194.25,194.24,10.69]
[1755442252934,12.46047886,194.25,194.24,10.69]
[1755442253301,8.99699216,194.25,194.24,10.03]
[1755442253499,12.46047886,194.25,194.24,10.03]
[1755442253714,8.99699216,194.25,194.24,10.03]
[1755442253910,12.46047886,194.25,194.24,10.03]
[1755442256549,12.46047886,194.25,194.24,0.03]
[1755442256840,49.74047886,194.25,194.24,10.03]
[1755442257217,49.02047886,194.25,194.24,10.03]
[1755442257707,7.37247372,194.25,194.24,14.58765543]
[1755442258237,12.52166874,194.25,194.24,10.69]
[1755442258421,12.52166874,194.25,194.24,10.03]
[1755442260034,13.24166874,194.25,194.24,0.03]
[1755442260237,68.80553974,194.25,194.24,0.03]
[1755442260740,64.90788431,194.25,194.24,10.03]
[1755442260948,49.08166874,194.25,194.24,10.03]
[1755442261136,49.0821503,194.25,194.24,10.03]
[1755442262511,49.0821503,194.25,194.24,10.69]
[1755442263049,49.0821503,194.25,194.24,0.03]
[1755442263202,49.0821503,194.25,194.24,10.03]
[1755442264133,12.5221503,194.25,194.24,10.03]
[1755442264935,13.2421503,194.25,194.24,10.03]
[1755442265236,13.2421503,194.25,194.24,0.03]
[1755442266123,12.5221503,194.25,194.24,0.03]
[1755442266327,12.5221503,194.25,194.24,10.03]
[1755442267653,12.5221503,194.25,194.24,0.03]
[1755442267947,12.5221503,194.25,194.24,10.03]
[1755442268851,12.5221503,194.25,194.24,0.03]
[1755442269024,32.2460213,194.25,194.24,0.03]
[1755442269631,32.24707636,194.25,194.24,0.03]
[1755442270866,31.52707636,194.25,194.24,0.03]
[1755442272364,32.24707636,194.25,194.24,0.03]
[1755442277172,33.53532436,194.25,194.24,0.03]
[1755442277342,37.86536059,194.25,194.24,0.03]
[1755442277750,39.92865159,194.25,194.24,0.03]
[1755442278175,37.52764293,194.25,194.23,0.03]
[1755442278375,49.73110365,194.24,194.23,0.03]
[1755442278680,54.0777803,194.24,194.23,0.03]
[1755442278875,69.18399587,194.24,194.23,0.03]
[1755442279046,64.15370959,194.24,194.23,0.03]
[1755442279242,18.09839505,194.24,194.23,0.03]
[1755442279564,51.0731376,194.24,194.23,14.59765543]
[1755442279757,12.4697396,194.24,194.23,14.59765543]
[1755442279958,7.32146942,194.24,194.23,14.59765543]
[1755442280471,12.4697396,194.24,194.23,14.59765543]
[1755442281470,12.4697396,194.24,194.23,10.7]
[1755442282384,7.32146942,194.24,194.23,10.7]
[1755442282872,7.32146942,194.24,194.23,14.59765543]
[1755442283194,7.32146942,194.24,194.23,10.7]
[1755442283398,7.32146942,194.24,194.23,14.59765543]
[1755442284349,3.85798272,194.24,194.23,14.59765543]
[1755442285286,3.85798272,194.24,194.23,19.74619067]
[1755442285484,3.85798272,194.24,194.23,14.59765543]
[1755442286876,3.85798272,194.24,194.23,19.74619067]
[1755442287548,3.85798272,194.24,194.23,14.59765543]
[1755442287753,7.32662454,194.24,194.23,10.7]
[1755442287954,7.32662454,194.24,194.23,10.03]
[1755442288165,7.32667077,194.24,194.23,10.03]
[1755442289881,12.47494095,194.24,194.23,10.03]
[1755442290077,13.16494095,194.24,194.23,10.03]
[1755442290257,12.47494095,194.24,194.23,10.03]
[1755442293888,7.32667077,194.24,194.23,14.59765543]
[1755442294186,3.85615127,194.24,194.23,19.74619067]
[1755442296659,0.06,194.25,194.23,19.74619067]
[1755442296863,3.85500599,194.24,194.23,15.17853524]
[1755442297063,0.06,194.25,194.23,19.07619067]
[1755442297288,0.06,194.25,194.24,50.41765543]
[1755442297480,0.06,194.25,194.24,51.08765543]
[1755442299695,0.06,194.25,194.24,56.23592561]
[1755442301587,0.06,194.25,194.24,136.93592561]
[1755442302904,0.06,194.25,194.24,127.89]
[1755442303069,0.06,194.25,194.24,131.11765543]
[1755442304808,0.06,194.25,194.24,131.79765543]
[1755442305812,0.06,194.25,194.24,133.04827018]
[1755442305979,0.06,194.25,194.24,136.94592561]
[1755442306598,0.06,194.25,194.24,131.79765543]
[1755442307180,0.06,194.25,194.24,131.11765543]
[1755442307715,0.06,194.25,194.24,90.7]
[1755442307716,4.58970025,194.25,194.24,90.7]
[1755442307890,8.05474882,194.25,194.24,10.0]
[1755442308713,12.52275396,194.25,194.24,10.0]
[1755442309209,9.05813223,194.25,194.24,10.0]